bitfinex/quotes_BTCUSD_20250515
["timestamp","ask_amount","ask_price","bid_price","bid_amount"]
[1747334222719,1.88698991,103390.0,103380.0,0.04193916]
[1747334223069,1.98698991,103390.0,103380.0,0.04193916]
[1747334223281,1.97752305,103390.0,103380.0,0.04193916]
[1747334223676,1.92352305,103390.0,103380.0,0.02553916]
[1747334223880,1.99892305,103390.0,103380.0,0.01013916]
[1747334224088,2.02592305,103390.0,103380.0,0.01013916]
[1747334224537,1.99892305,103390.0,103380.0,0.01013916]
[1747334224706,1.99892305,103390.0,103380.0,0.04213916]
[1747334224883,1.25785916,103390.0,103380.0,0.04213916]
[1747334225437,1.66561916,103390.0,103380.0,0.04213916]
[1747334225867,1.69261916,103390.0,103380.0,0.04213916]
[1747334226273,2.02592305,103390.0,103380.0,0.01013916]
[1747334226476,2.0504639,103390.0,103380.0,0.01013916]
[1747334226696,2.0662639,103390.0,103380.0,0.01013916]
[1747334227342,8.24171391,103390.0,103380.0,0.01013916]
[1747334227556,8.23671391,103390.0,103380.0,0.01013916]
[1747334227805,1.2601825,103380.0,103370.0,0.0157122]
[1747334228016,6.4174919,103380.0,103370.0,0.0157122]
[1747334228231,6.5174919,103380.0,103370.0,0.00618028]
[1747334228446,0.55288882,103340.0,103330.0,0.0319]
[1747334228647,0.55293003,103320.0,103310.0,1.0]
[1747334228857,0.65023943,103320.0,103310.0,1.0]
[1747334229079,0.65023943,103320.0,103310.0,1.33330389]
[1747334229300,0.96053592,103320.0,103310.0,0.9405]
[1747334229538,0.55277592,103320.0,103310.0,0.9405]
[1747334229756,1.05798898,103320.0,103310.0,0.9405]
[1747334229952,0.65022898,103320.0,103310.0,0.9405]
[1747334230376,0.65522898,103320.0,103310.0,1.27380389]
[1747334230574,0.96567958,103320.0,103310.0,1.27380389]
[1747334231329,0.96067958,103320.0,103310.0,1.27380389]
[1747334231812,0.96067958,103320.0,103310.0,0.9405]
[1747334232297,1.15529838,103320.0,103310.0,0.9405]
[1747334232531,1.18229838,103320.0,103310.0,0.9405]
[1747334232760,1.59100227,103320.0,103310.0,0.9405]
[1747334233011,1.59100227,103320.0,103310.0,0.91]
[1747334233685,2.63204701,103320.0,103310.0,0.91]
[1747334233895,2.29874312,103320.0,103310.0,0.91]
[1747334234491,2.35874312,103320.0,103310.0,0.91]
[1747334234701,2.37484312,103320.0,103310.0,0.91]
[1747334235157,2.26143372,103320.0,103310.0,0.91]
[1747334235710,2.21143372,103320.0,103310.0,0.91]
[1747334237142,2.20143372,103320.0,103310.0,0.91]
[1747334237364,2.21143372,103320.0,103310.0,0.91]
[1747334237566,7.62613761,103320.0,103310.0,0.91]
[1747334237771,7.72344701,103320.0,103310.0,0.91]
[1747334238764,7.71844701,103320.0,103310.0,0.91]
[1747334238966,7.62113761,103320.0,103310.0,0.87109031]
[1747334239202,7.06700561,103320.0,103310.0,0.87109031]
[1747334239416,7.11700561,103320.0,103310.0,0.87109031]
[1747334239576,7.09000561,103320.0,103310.0,0.87109031]
[1747334239752,6.65524561,103320.0,103310.0,0.87109031]
[1747334239971,1.33066172,103320.0,103310.0,0.87109031]
[1747334240174,1.70907372,103320.0,103310.0,0.87109031]
[1747334240651,2.07607372,103320.0,103310.0,0.87109031]
[1747334240924,1.13593286,103320.0,103310.0,0.90249031]
[1747334241139,0.93225286,103320.0,103310.0,0.90249031]
[1747334241297,1.23973286,103320.0,103310.0,0.90249031]
[1747334241836,1.57973286,103320.0,103310.0,1.2357942]
[1747334242039,1.23973286,103320.0,103310.0,1.2357942]
[1747334242260,0.70794346,103320.0,103310.0,1.2357942]
[1747334242499,1.08842346,103320.0,103310.0,1.2357942]
[1747334242795,1.11542346,103320.0,103310.0,1.2357942]
[1747334242934,1.14242346,103320.0,103310.0,1.2357942]
[1747334243135,1.45542346,103320.0,103310.0,0.90249031]
[1747334243346,1.02094346,103320.0,103310.0,1.2357942]
[1747334243547,1.08842346,103320.0,103310.0,1.2357942]
[1747334243759,1.10542346,103320.0,103310.0,1.2357942]
[1747334243955,1.12242346,103320.0,103310.0,1.2357942]
[1747334244370,1.12242346,103320.0,103310.0,1.4293863]
[1747334244371,0.71494346,103320.0,103310.0,1.4293863]
[1747334244582,0.44078527,103320.0,103310.0,1.2357942]
[1747334244809,0.44078527,103320.0,103310.0,0.90249031]
[1747334245006,0.44078527,103320.0,103310.0,1.2357942]
[1747334245441,0.44078527,103320.0,103310.0,0.90249031]
[1747334245863,0.44078527,103320.0,103310.0,1.4293863]
[1747334246065,0.43143702,103320.0,103310.0,1.2357942]
[1747334246301,0.4411155,103320.0,103310.0,1.44874522]
[1747334246508,0.45079369,103320.0,103310.0,1.44874522]
[1747334247143,0.45079369,103320.0,103310.0,1.2357942]
[1747334247556,0.45079369,103320.0,103310.0,1.4390659]
[1747334247755,0.65451369,103320.0,103310.0,0.90249031]
[1747334248495,1.09182309,103320.0,103310.0,0.90249031]
[1747334249309,1.18913249,103320.0,103310.0,0.88739031]
[1747334249512,1.18913249,103320.0,103310.0,0.87109031]
[1747334249691,1.26707861,103320.0,103310.0,0.87109031]
[1747334250573,0.68438309,103320.0,103310.0,0.90199031]
[1747334250728,1.09178309,103320.0,103310.0,0.90199031]
[1747334250909,1.09178309,103320.0,103310.0,0.88639031]
[1747334251125,1.09178309,103320.0,103310.0,0.87109031]
[1747334251594,1.10798309,103320.0,103310.0,0.87109031]
[1747334251809,1.09178309,103320.0,103310.0,0.87109031]
[1747334253145,1.09178309,103320.0,103310.0,1.2351942]
[1747334253373,1.09178309,103320.0,103310.0,0.90189031]
[1747334253582,0.68438309,103320.0,103310.0,0.90189031]
[1747334253783,1.09178309,103320.0,103310.0,0.90189031]
[1747334253993,1.09178309,103320.0,103310.0,0.88669031]
[1747334254435,0.68438309,103320.0,103310.0,1.2351942]
[1747334254640,1.09178309,103320.0,103310.0,1.2351942]
[1747334254839,1.09178309,103320.0,103310.0,0.86298379]
[1747334255498,1.09178309,103320.0,103310.0,1.19628768]
[1747334255706,1.09178309,103320.0,103310.0,0.86298379]
[1747334256856,0.68438309,103320.0,103310.0,0.86298379]
[1747334257074,1.09182309,103320.0,103310.0,0.86298379]
[1747334258312,1.09182309,103320.0,103310.0,0.83272757]
[1747334258760,1.09182309,103320.0,103310.0,1.16603146]
[1747334259411,0.88818309,103320.0,103310.0,1.16603146]
[1747334259614,1.09182309,103320.0,103310.0,1.16603146]
[1747334259816,0.99451369,103320.0,103310.0,1.16603146]
[1747334260606,0.99451369,103320.0,103310.0,0.83272757]
[1747334260831,0.99451369,103320.0,103310.0,1.16603146]
[1747334261715,0.45087369,103320.0,103310.0,1.35962356]
[1747334261943,0.6448355,103320.0,103310.0,1.16603146]
[1747334262187,0.63515702,103320.0,103310.0,0.83272757]
[1747334262417,0.63515702,103320.0,103310.0,1.16603146]
[1747334263506,0.63515702,103320.0,103310.0,0.83272757]
[1747334263712,0.63515702,103320.0,103310.0,1.16603146]
[1747334264324,0.73246642,103320.0,103310.0,0.83272757]
[1747334264754,0.73246642,103320.0,103310.0,1.16603146]
[1747334264957,1.1650702,103320.0,103310.0,0.80192757]
[1747334266028,1.08239974,103320.0,103310.0,0.80192757]
[1747334266776,1.09759974,103320.0,103310.0,0.80192757]
[1747334267183,1.44690363,103320.0,103310.0,0.80192757]
[1747334268369,1.11359974,103320.0,103310.0,0.80192757]
[1747334268543,6.49690363,103320.0,103310.0,0.80192757]
[1747334268749,6.60875388,103320.0,103310.0,0.80192757]
[1747334269075,6.61875388,103320.0,103310.0,0.80192757]
[1747334269614,6.52144448,103320.0,103310.0,0.80192757]
[1747334270303,6.62144448,103320.0,103310.0,0.80192757]
[1747334270838,6.60444448,103320.0,103310.0,0.80192757]
[1747334271244,6.63144448,103320.0,103310.0,0.80192757]
[1747334271441,6.61444448,103320.0,103310.0,0.80192757]
[1747334271646,6.71175388,103320.0,103310.0,0.80192757]
[1747334271843,6.73875388,103320.0,103310.0,0.80192757]
[1747334272482,6.30814059,103320.0,103310.0,0.80192757]
[1747334272655,6.64144448,103320.0,103310.0,0.80192757]
[1747334272870,6.97474837,103320.0,103310.0,0.80192757]
[1747334273074,6.98474837,103320.0,103310.0,0.80192757]
[1747334273273,6.97474837,103320.0,103310.0,0.80192757]
[1747334273538,7.07205777,103320.0,103310.0,0.80192757]
[1747334273843,7.09872961,103320.0,103310.0,0.80192757]
[1747334274169,7.48646022,103320.0,103310.0,0.75709617]
[1747334274367,7.45978838,103320.0,103310.0,0.75459638]
[1747334274574,7.45978838,103320.0,103310.0,0.69843919]
[1747334274792,8.15978838,103320.0,103310.0,0.69843919]
[1747334274999,8.15978838,103320.0,103310.0,0.69069337]
[1747334275284,8.15978838,103320.0,103310.0,0.65178212]
[1747334275487,8.15978838,103320.0,103310.0,0.6440363]
[1747334275894,8.15978838,103320.0,103310.0,0.63629048]
[1747334276371,8.15978838,103320.0,103310.0,0.61970939]
[1747334276707,8.15978838,103320.0,103310.0,0.61196148]
[1747334276912,8.14978838,103320.0,103310.0,0.38698414]
[1747334277113,8.14978838,103320.0,103310.0,0.34399747]
[1747334277657,8.14978838,103320.0,103310.0,0.20847633]
[1747334277867,8.14978838,103320.0,103310.0,0.20072842]
[1747334278074,8.10492044,103320.0,103310.0,0.20072842]
[1747334278283,8.10492044,103320.0,103310.0,0.19298051]
[1747334278702,8.10492044,103320.0,103310.0,0.1852326]
[1747334279118,0.01,103300.0,103280.0,0.01007916]
[1747334279316,6.62016213,103290.0,103280.0,0.01007916]
[1747334279517,6.95346602,103290.0,103280.0,0.01007916]
[1747334280300,1.52438128,103290.0,103280.0,0.01007916]
[1747334280510,1.85768517,103290.0,103280.0,0.01007916]
[1747334280709,1.85776517,103290.0,103280.0,0.01007916]
[1747334281358,1.80936517,103290.0,103280.0,0.01007916]
[1747334281564,1.82636517,103290.0,103280.0,0.01007916]
[1747334281768,1.84436517,103290.0,103280.0,0.01007916]
[1747334283612,1.10358128,103290.0,103280.0,0.04107916]
[1747334283904,1.10358128,103290.0,103280.0,0.01007916]
[1747334283905,1.64052517,103290.0,103280.0,0.01007916]
[1747334284106,1.84428517,103290.0,103280.0,0.01007916]
[1747334284733,1.95659457,103290.0,103280.0,0.01007916]
[1747334285706,2.30443931,103290.0,103280.0,0.01007916]
[1747334285907,7.37073931,103290.0,103280.0,0.01007916]
[1747334286314,7.38073931,103290.0,103280.0,0.01007916]
[1747334286699,7.39073931,103290.0,103280.0,0.01007916]
[1747334286907,7.40645131,103290.0,103280.0,0.01007916]
[1747334287232,0.57553055,103280.0,103270.0,0.0112122]
[1747334287408,6.20185322,103280.0,103270.0,0.0112122]
[1747334288383,0.5530744,103250.0,103240.0,6e-05]
[1747334288557,6.86160769,103250.0,103240.0,6e-05]
[1747334288974,6.94720769,103250.0,103240.0,6e-05]
[1747334289177,6.96174854,103250.0,103240.0,6e-05]
[1747334289419,7.10780602,103250.0,103240.0,6e-05]
[1747334289876,7.10792602,103250.0,103240.0,6e-05]
[1747334290085,7.13492602,103250.0,103240.0,6e-05]
[1747334290253,7.03761662,103250.0,103240.0,6e-05]
[1747334290813,7.06461662,103250.0,103240.0,6e-05]
[1747334291779,6.65493662,103250.0,103240.0,6e-05]
[1747334291986,6.64493662,103250.0,103240.0,6e-05]
[1747334292198,7.02345662,103250.0,103240.0,6e-05]
[1747334292422,7.13076602,103250.0,103240.0,6e-05]
[1747334292670,7.16096602,103250.0,103240.0,6e-05]
[1747334293070,7.17552593,103250.0,103240.0,6e-05]
[1747334293871,7.87552593,103250.0,103240.0,6e-05]
[1747334294452,7.86552593,103250.0,103240.0,6e-05]
[1747334294655,7.86552593,103250.0,103200.0,0.1163]
[1747334294656,0.88646086,103210.0,103200.0,0.1323]
[1747334294863,1.48042637,103210.0,103200.0,0.1323]
[1747334295876,1.4805698,103210.0,103200.0,0.1323]
[1747334296058,1.05940101,103210.0,103200.0,0.1323]
[1747334296267,1.5063298,103210.0,103200.0,0.1323]
[1747334296669,1.84063369,103210.0,103200.0,0.1163]
[1747334296902,1.84163369,103210.0,103200.0,0.1001]
[1747334297103,1.5063298,103210.0,103200.0,0.1001]
[1747334297302,2.55545583,103210.0,103200.0,0.1001]
[1747334297504,2.22515194,103210.0,103200.0,0.1001]
[1747334297753,2.2065298,103210.0,103200.0,0.1001]
[1747334298306,2.53983369,103210.0,103200.0,0.1001]
[1747334298494,2.2065298,103210.0,103200.0,0.1318]
[1747334299009,2.2089298,103210.0,103200.0,0.1318]
[1747334299970,2.2380228,103210.0,103200.0,0.1318]
[1747334300377,2.2383828,103210.0,103200.0,0.1318]
[1747334300743,2.3356922,103210.0,103200.0,0.1318]
[1747334300949,2.2383828,103210.0,103200.0,0.1158]
[1747334301627,2.2092898,103210.0,103200.0,0.1309]
[1747334301827,1.7692898,103210.0,103200.0,0.1309]
[1747334301976,2.2100898,103210.0,103200.0,0.1309]
[1747334302184,2.2100898,103210.0,103200.0,0.1158]
[1747334302550,2.3073992,103210.0,103200.0,0.1001]
[1747334302754,2.2100898,103210.0,103200.0,0.1001]
[1747334302957,1.7692898,103210.0,103200.0,0.1001]
[1747334303231,2.2097698,103210.0,103200.0,0.1001]
[1747334303631,2.54307369,103210.0,103200.0,0.1001]
[1747334304235,2.55387369,103210.0,103200.0,0.1001]
[1747334304516,7.6037396,103210.0,103200.0,0.1001]
[1747334304710,6.94058045,103210.0,103200.0,0.1001]
[1747334304961,6.95058045,103210.0,103200.0,0.1001]
[1747334305721,6.94758045,103210.0,103200.0,0.1001]
[1747334305923,7.28688434,103210.0,103200.0,0.1001]
[1747334306166,6.97058045,103210.0,103200.0,0.1001]
[1747334306364,7.41919374,103210.0,103200.0,0.1001]
[1747334306615,7.38419374,103210.0,103200.0,0.1001]
[1747334306760,7.67919374,103210.0,103200.0,0.05842867]
[1747334306975,7.39271374,103210.0,103200.0,0.05842867]
[1747334307180,7.88095067,103210.0,103200.0,0.05067587]
[1747334307406,7.88095067,103210.0,103200.0,0.00900454]
[1747334307583,7.48388127,103210.0,103200.0,0.00900454]
[1747334307801,7.48388127,103210.0,103200.0,0.00124856]
[1747334307802,6.98372127,103210.0,103200.0,0.00124856]
[1747334308002,6.79007349,103210.0,103200.0,0.00124856]
[1747334308193,0.01,103200.0,103180.0,0.01007916]
[1747334308398,0.98381158,103190.0,103180.0,0.01007916]
[1747334308573,1.45697158,103190.0,103180.0,0.01007916]
[1747334309173,6.61901831,103190.0,103180.0,0.01007916]
[1747334309548,6.53624976,103190.0,103180.0,0.01007916]
[1747334309751,6.11708976,103190.0,103180.0,0.01007916]
[1747334309871,6.59052976,103190.0,103180.0,0.01007916]
[1747334310279,6.11708976,103190.0,103180.0,0.01007916]
[1747334310490,1.62602587,103190.0,103180.0,0.01007916]
[1747334310754,1.15250587,103190.0,103180.0,0.01007916]
[1747334310945,1.62706587,103190.0,103180.0,0.01007916]
[1747334311148,1.96036976,103190.0,103180.0,0.01007916]
[1747334311367,1.47126891,103190.0,103180.0,0.01007916]
[1747334311568,1.94550891,103190.0,103180.0,0.01007916]
[1747334312011,1.13796502,103190.0,103180.0,0.01007916]
[1747334312219,1.61196502,103190.0,103180.0,0.04227916]
[1747334312423,1.61408502,103190.0,103180.0,0.04227916]
[1747334312628,1.61392502,103190.0,103180.0,0.04227916]
[1747334313507,1.94722891,103190.0,103180.0,0.01007916]
[1747334314310,1.61392502,103190.0,103180.0,0.01007916]
[1747334314532,1.61392502,103190.0,103180.0,0.02607916]
[1747334314735,1.61392502,103190.0,103180.0,0.04267916]
[1747334314956,0.82706402,103190.0,103180.0,0.56981906]
[1747334315174,1.04888669,103190.0,103180.0,0.37598305]
[1747334315381,1.26014769,103190.0,103180.0,0.37598305]
[1747334315820,1.16283829,103190.0,103180.0,0.37598305]
[1747334316029,1.13583829,103190.0,103180.0,0.56981906]
[1747334316230,1.1431479,103190.0,103180.0,0.37598305]
[1747334316438,1.11614762,103190.0,103180.0,0.58920218]
[1747334316639,1.1395284,103190.0,103180.0,0.58920218]
[1747334316849,0.6456084,103190.0,103180.0,0.58920218]
[1747334317069,1.1254084,103190.0,103180.0,0.5988936]
[1747334317933,1.11571829,103190.0,103180.0,0.24620687]
[1747334318143,1.11571829,103190.0,103180.0,0.58920237]
[1747334318599,1.11567829,103190.0,103180.0,0.58920237]
[1747334319020,1.11567829,103190.0,103180.0,0.59889388]
[1747334319229,0.90248,103190.0,103180.0,0.61827644]
[1747334319428,0.92186059,103190.0,103180.0,0.61827644]
[1747334319651,0.93155116,103190.0,103180.0,0.28497255]
[1747334319852,0.9121702,103190.0,103180.0,0.61827644]
[1747334320057,0.93155126,103190.0,103180.0,0.61827644]
[1747334320476,0.9121702,103190.0,103180.0,0.61827644]
[1747334320687,0.92186068,103190.0,103180.0,0.61827644]
[1747334320899,0.007,103190.0,103180.0,0.61927644]
[1747334321102,0.25885842,103200.0,103190.0,0.25368867]
[1747334321103,0.23948,103200.0,103190.0,0.25368867]
[1747334321316,0.23948,103200.0,103190.0,0.68430196]
[1747334321317,0.24916917,103200.0,103190.0,0.68430196]
[1747334321537,0.46923822,103210.0,103200.0,0.244578]
[1747334321744,0.46923897,103210.0,103200.0,0.58757143]
[1747334322145,0.46923897,103210.0,103200.0,0.59726088]
[1747334322391,0.46923897,103210.0,103200.0,0.93056477]
[1747334322601,0.25608017,103210.0,103200.0,0.93056458]
[1747334322831,0.26576896,103210.0,103200.0,0.93056458]
[1747334323038,0.28045784,103210.0,103200.0,0.93056458]
[1747334323244,0.27476896,103210.0,103200.0,0.93156458]
[1747334323457,0.47823751,103210.0,103200.0,0.93156467]
[1747334324445,0.48792649,103210.0,103200.0,0.93156467]
[1747334324656,0.25136649,103210.0,103200.0,0.0324]
[1747334324872,0.46054096,103210.0,103200.0,0.0324]
[1747334325059,0.60236475,103210.0,103200.0,0.0324]
[1747334325470,0.55785036,103210.0,103200.0,0.0324]
[1747334327781,0.79337036,103210.0,103200.0,0.0174]
[1747334329185,0.79337036,103210.0,103200.0,0.36710389]
[1747334329391,0.69606049,103210.0,103200.0,0.58028188]
[1747334329610,0.02852082,103210.0,103200.0,0.91358577]
[1747334329826,0.26524035,103210.0,103200.0,0.94265421]
[1747334330021,0.4687089,103210.0,103200.0,0.93296495]
[1747334330258,0.46870881,103210.0,103200.0,0.94265421]
[1747334330494,0.27492914,103210.0,103200.0,0.94265421]
[1747334330714,0.28461802,103210.0,103200.0,0.94265421]
[1747334331121,0.26524017,103210.0,103200.0,0.94265421]
[1747334331343,0.24586343,103210.0,103200.0,1.03996361]
[1747334331543,0.00914343,103210.0,103200.0,1.03996361]
[1747334332366,0.02851998,103210.0,103200.0,1.03996361]
[1747334332573,0.01483166,103210.0,103200.0,1.03896361]
[1747334332777,0.01952017,103210.0,103200.0,1.03996361]
[1747334333423,0.22298863,103210.0,103200.0,0.36366657]
[1747334333639,0.22298863,103210.0,103200.0,0.57059206]
[1747334333866,0.22298863,103210.0,103200.0,0.91358549]
[1747334334091,0.22398863,103210.0,103200.0,0.91358549]
[1747334334310,0.23367761,103210.0,103200.0,0.91358549]
[1747334334520,0.21430087,103210.0,103200.0,0.36710389]
[1747334334761,0.21430087,103210.0,103200.0,0.0338]
[1747334335371,0.21430087,103210.0,103200.0,0.36710389]
[1747334335574,0.38026925,103210.0,103200.0,0.0174]
[1747334335774,0.21430087,103210.0,103200.0,0.001]
[1747334336062,0.31161027,103210.0,103200.0,0.001]
[1747334336218,0.65161027,103210.0,103200.0,0.001]
[1747334337815,0.74615639,103210.0,103200.0,0.001]
[1747334338409,0.66821027,103210.0,103200.0,0.001]
[1747334339980,0.76551967,103210.0,103200.0,0.001]
[1747334340166,0.66821027,103210.0,103200.0,0.001]
[1747334341931,0.65161027,103210.0,103200.0,0.001]
[1747334342496,1.12713027,103210.0,103200.0,0.001]
[1747334342703,0.65161027,103210.0,103200.0,0.001]
[1747334342904,1.12717027,103210.0,103200.0,0.001]
[1747334343654,1.12693027,103210.0,103200.0,0.001]
[1747334343864,0.21319829,103190.0,103180.0,0.24570678]
[1747334343998,0.21319829,103190.0,103180.0,0.58870218]
[1747334344206,0.21319829,103190.0,103180.0,0.24570697]
[1747334344413,0.19371016,103190.0,103180.0,0.37548305]
[1747334344600,0.19371016,103190.0,103180.0,0.57901086]
[1747334344826,0.19371016,103190.0,103180.0,0.04217916]
[1747334345015,0.19371016,103190.0,103180.0,0.37548305]
[1747334345226,0.19371016,103190.0,103180.0,0.37648305]
[1747334345465,0.19571016,103190.0,103180.0,0.37648305]
[1747334345683,0.19771016,103190.0,103180.0,0.58001067]
[1747334345879,0.0233805,103190.0,103180.0,0.59939323]
[1747334346090,0.004,103190.0,103180.0,0.59939323]
[1747334346303,0.004,103190.0,103180.0,1.03000652]
[1747334346722,0.004,103190.0,103180.0,0.36339874]
[1747334346956,0.004,103190.0,103180.0,0.69670263]
[1747334347170,0.002,103190.0,103180.0,0.69670263]
[1747334347419,0.002,103190.0,103180.0,0.70489358]
[1747334347420,0.01938068,103190.0,103180.0,0.70489358]
[1747334347655,0.01938068,103190.0,103180.0,0.67882007]
[1747334347656,0.23257887,103190.0,103180.0,0.67882007]
[1747334347856,0.21419847,103190.0,103180.0,0.58151067]
[1747334348062,0.21419847,103190.0,103180.0,0.58051076]
[1747334348259,0.02038124,103190.0,103180.0,0.60958484]
[1747334348462,0.21519847,103190.0,103180.0,0.6018937]
[1747334348686,0.01169029,103190.0,103180.0,0.61158484]
[1747334348894,0.0213805,103190.0,103180.0,0.61158484]
[1747334349100,0.04076118,103190.0,103180.0,0.61158484]
[1747334349381,0.24426927,103190.0,103180.0,0.61158493]
[1747334349556,0.04076118,103190.0,103180.0,0.62127607]
[1747334350188,0.00014343,103210.0,103200.0,0.22286706]
[1747334350389,0.00014343,103210.0,103200.0,0.92107484]
[1747334350589,0.01951988,103210.0,103200.0,0.92107484]
[1747334350825,0.03889709,103210.0,103200.0,0.92107484]
[1747334351032,0.0292083,103210.0,103200.0,0.92107484]
[1747334351236,0.00014343,103210.0,103200.0,0.92107484]
[1747334351448,0.00314343,103210.0,103200.0,0.92207484]
[1747334351664,0.00514343,103210.0,103200.0,1.01938424]
[1747334352922,0.01483166,103210.0,103200.0,1.01938424]
[1747334353152,0.20861142,103210.0,103200.0,0.56939215]
[1747334353359,0.2279889,103210.0,103200.0,0.56939225]
[1747334353542,0.2279889,103210.0,103200.0,0.58877152]
[1747334353752,0.03420923,103210.0,103200.0,0.59846078]
[1747334354025,0.03420923,103210.0,103200.0,0.26515689]
[1747334354231,0.03420923,103210.0,103200.0,0.59846078]
[1747334354586,0.04389821,103210.0,103200.0,0.59846078]
[1747334355463,0.04389821,103210.0,103200.0,0.93176467]
[1747334355666,0.01483175,103210.0,103200.0,0.93176467]
[1747334355865,0.00514343,103210.0,103200.0,0.93176467]
[1747334356092,0.21307496,103250.0,103240.0,0.00968616]
[1747334356340,0.03874297,103240.0,103230.0,0.23642913]
[1747334356523,0.23246698,103240.0,103230.0,0.92241045]
[1747334356819,0.2130955,103240.0,103230.0,0.033]
[1747334357019,0.02906244,103220.0,103210.0,0.22281633]
[1747334357278,0.23251118,103220.0,103210.0,0.32012591]
[1747334357498,0.22282398,103220.0,103210.0,0.6945119]
[1747334357660,0.22282398,103220.0,103210.0,0.69133479]
[1747334357864,0.22282398,103220.0,103210.0,0.70102349]
[1747334358021,0.22282398,103220.0,103210.0,0.710712]
[1747334358225,0.22282398,103220.0,103210.0,0.72240042]
[1747334358782,0.22382398,103220.0,103210.0,0.72540042]
[1747334359129,0.03975104,103220.0,103210.0,0.72540042]
[1747334359345,0.001,103220.0,103210.0,0.73508874]
[1747334359545,0.001,103220.0,103210.0,0.83239814]
[1747334360210,0.001,103220.0,103210.0,0.84188677]
[1747334366033,0.23351117,103220.0,103210.0,0.81282152]
[1747334366228,0.03975028,103220.0,103210.0,0.27877367]
[1747334366482,0.03006233,103220.0,103210.0,0.27877377]
[1747334366668,0.03006233,103220.0,103210.0,0.28846209]
[1747334366887,0.03975018,103220.0,103210.0,0.74457746]
[1747334367062,0.03006233,103220.0,103210.0,0.74457746]
[1747334367226,0.03975018,103220.0,103210.0,0.74457746]
[1747334367412,0.23351107,103220.0,103210.0,0.73488914]
[1747334367664,0.23351107,103220.0,103210.0,0.23350805]
[1747334367872,0.2141364,103220.0,103210.0,0.21860822]
[1747334368076,0.2141364,103220.0,103210.0,0.20891952]
[1747334368286,0.2141364,103220.0,103210.0,0.2282971]
[1747334368729,0.2141364,103220.0,103210.0,0.2186084]
[1747334368940,0.2141364,103220.0,103210.0,0.22829719]
[1747334369317,0.2141364,103220.0,103210.0,0.23798579]
[1747334369518,0.2141364,103220.0,103210.0,0.00548002]
[1747334369812,0.2141364,103220.0,103210.0,0.20894867]
[1747334370040,0.2141364,103220.0,103210.0,0.00548002]
[1747334370243,0.20444874,103220.0,103210.0,0.00548002]
[1747334374423,0.20444874,103220.0,103210.0,0.46159539]
[1747334374591,0.20444874,103220.0,103210.0,0.00548002]
[1747334377466,0.20444874,103220.0,103210.0,0.34334654]
[1747334378069,0.20444874,103220.0,103210.0,0.00548002]
[1747334379069,0.20444874,103220.0,103210.0,0.34334654]
[1747334381161,0.20444874,103220.0,103210.0,0.00548002]
[1747334381420,0.20444874,103220.0,103210.0,0.34334654]
[1747334381581,0.20444874,103220.0,103210.0,0.00548002]
[1747334382187,0.20444874,103220.0,103210.0,0.34334654]
[1747334382917,0.20444874,103220.0,103210.0,0.00548002]
[1747334382918,0.23604874,103220.0,103210.0,0.00548002]
[1747334383092,1.56219989,103220.0,103210.0,0.00548002]
[1747334383295,2.18818466,103220.0,103210.0,0.00548002]
[1747334383720,1.36655814,103220.0,103210.0,0.00548002]
[1747334383920,1.85899789,103220.0,103210.0,0.00248002]
[1747334384130,2.19878441,103220.0,103210.0,0.00048002]
[1747334384673,2.20178441,103220.0,103210.0,0.00048002]
[1747334385082,1.50858441,103220.0,103210.0,0.00048002]
[1747334385307,1.17071789,103220.0,103210.0,0.00048002]
[1747334385516,1.50858441,103220.0,103210.0,0.00048002]
[1747334385715,1.50658441,103220.0,103210.0,0.00048002]
[1747334385889,1.18471789,103220.0,103210.0,0.00148002]
[1747334386043,1.18171789,103220.0,103210.0,0.00148002]
[1747334386246,1.19871789,103220.0,103210.0,0.00248002]
[1747334386658,1.53658441,103220.0,103210.0,0.00248002]
[1747334386863,1.55112526,103220.0,103210.0,0.00248002]
[1747334387500,6.69843466,103220.0,103210.0,0.00248002]
[1747334387885,6.60112526,103220.0,103210.0,0.00248002]
[1747334388509,6.61593766,103220.0,103210.0,0.00248002]
[1747334391449,6.13233766,103220.0,103210.0,0.00248002]
[1747334391776,6.60677766,103220.0,103210.0,0.00248002]
[1747334395115,6.01777029,103220.0,103210.0,0.00248002]
[1747334395277,0.86337029,103220.0,103210.0,0.00248002]
[1747334395475,0.84699029,103220.0,103210.0,0.00248002]
[1747334395677,0.83181029,103220.0,103210.0,0.00248002]
[1747334396058,1.17181029,103220.0,103210.0,0.00248002]
[1747334396259,1.15699789,103220.0,103210.0,0.00248002]
[1747334396892,1.14723814,103220.0,103210.0,0.00248002]
[1747334398514,1.14619814,103220.0,103210.0,0.00248002]
[1747334398711,0.67375814,103220.0,103210.0,0.00248002]
[1747334399011,1.60414483,103220.0,103210.0,0.00248002]
[1747334399219,1.5255955,103220.0,103210.0,0.00248002]
[1747334399412,6.59013635,103220.0,103210.0,0.00248002]
[1747334400326,6.6047596,103220.0,103210.0,0.00248002]
[1747334401682,6.1324396,103220.0,103210.0,0.00248002]
[1747334401882,1.21649308,103220.0,103210.0,0.00248002]
[1747334402105,0.74457308,103220.0,103210.0,0.00248002]
[1747334402313,1.21645308,103220.0,103210.0,0.00248002]
[1747334403033,0.74457308,103220.0,103210.0,0.00248002]
[1747334403201,1.20634224,103220.0,103210.0,0.00248002]
[1747334403406,1.54420876,103220.0,103210.0,0.00248002]
[1747334405268,1.19096139,103220.0,103210.0,0.00248002]
[1747334405472,1.52882791,103220.0,103210.0,0.00248002]
[1747334405604,1.19096139,103220.0,103210.0,0.00248002]
[1747334405816,1.52882791,103220.0,103210.0,0.00248002]
[1747334406248,1.15906139,103220.0,103210.0,0.00248002]
[1747334406679,0.58622139,103220.0,103210.0,0.00248002]
[1747334406890,0.81894139,103220.0,103210.0,0.00248002]
[1747334407604,1.17444139,103220.0,103210.0,0.00248002]
[1747334409179,1.17424139,103220.0,103210.0,0.00248002]
[1747334409811,0.91159814,103220.0,103210.0,0.00248002]
[1747334409988,0.47428874,103220.0,103210.0,0.37334654]
[1747334410185,1.03704089,103220.0,103210.0,0.37334654]
[1747334410441,1.03704089,103220.0,103210.0,0.576815]
[1747334410613,1.03684089,103220.0,103210.0,0.58650379]
[1747334410855,0.71621669,103220.0,103210.0,0.5961923]
[1747334411025,0.53214318,103220.0,103210.0,0.61556904]
[1747334411242,0.52233542,103220.0,103210.0,0.61556904]
[1747334411406,0.53202337,103220.0,103210.0,0.61556904]
[1747334411615,0.70978426,103220.0,103210.0,0.23794857]
[1747334411813,0.69278426,103220.0,103210.0,0.57481509]
[1747334412014,0.69378426,103220.0,103210.0,0.58550388]
[1747334412387,0.68509669,103220.0,103210.0,0.59619258]
[1747334413095,0.68509669,103220.0,103210.0,0.58650388]
[1747334413655,0.68509669,103220.0,103210.0,0.59619258]
[1747334414230,0.68509669,103220.0,103210.0,0.60588118]
[1747334414454,0.68509669,103220.0,103210.0,0.59619258]
[1747334414660,0.68509669,103220.0,103210.0,0.58650388]
[1747334414661,0.20544884,103220.0,103210.0,0.58650388]